fUSD/lending_fUSD_20250610
["ID","MTS","AMOUNT","RATE_DAILY","PERIOD"]
[365217958,1749540633174,-217.38080255,0.000176,2]
[365217959,1749540633185,-150.0,0.000176,2]
[365217960,1749540633195,-1300.0,0.000176,6]
[365217961,1749540633205,-1219.399391,0.0001763,2]
[365217962,1749540633215,-191.3556913,0.00017689,4]
[365217963,1749540633284,-8.6443087,0.00017689,4]
[365217964,1749540633295,-832.3673072,0.000177,6]
[365217965,1749540633308,-967.6326928,0.000177,6]
[365217966,1749540633318,-1623.38841206,0.000177,2]
[365217967,1749540633329,-500.0,0.00017704,2]
[365217968,1749540633339,-1277.22967612,0.00017707,2]
[365217969,1749540633356,-119.77032388,0.00017707,2]
[365217970,1749540633367,-210.65992522,0.0001772,2]
[365217975,1749540638574,-0.90781996,0.0001772,2]
[365217976,1749540638584,-860.68698827,0.00017734,2]
[365217977,1749540638871,-536.31301173,0.00017734,2]
[365217978,1749540638882,-200.0,0.00017744,2]
[365217979,1749540638892,-404.23699327,0.00017762,2]
[365218153,1749540640626,-2435.83064296,0.00017762,2]
[365218173,1749540640813,-2464.56470086,0.00017762,2]
[365218175,1749540640823,-637.0,0.00017771,2]
[365218177,1749540640832,-802.0,0.00017771,2]
[365218179,1749540640842,-558.0,0.00017771,2]
[365218181,1749540640851,-927.0,0.00017771,2]
[365218183,1749540640861,-1275.0,0.00017771,2]
[365218185,1749540640871,-590.0,0.00017771,2]
[365218187,1749540640880,-2001.0,0.00017771,2]
[365218189,1749540640889,-1256.0,0.00017771,2]
[365218191,1749540640899,-1159.0,0.00017771,2]
[365218193,1749540640909,-5000.0,0.000178,2]
[365218195,1749540640918,-2300.0,0.000178,6]
[365218196,1749540640928,-155.0,0.00017804,2]
[365218199,1749540640938,-3330.0,0.00017804,2]
[365218200,1749540640947,-7064.0,0.00017804,2]
[365218203,1749540640957,-2853.26575168,0.00017804,2]
[365218390,1749540643319,-1231.73424832,0.00017804,2]
[365218391,1749540643330,-1397.0,0.00017852,2]
[365218392,1749540643339,-500.0,0.00017863,2]
[365218393,1749540643349,-697.06035168,0.00017887,2]
[365218394,1749540643423,-1958.53298437,0.00017887,2]
[365218395,1749540643432,-1126.71961921,0.0001789,2]
[365218396,1749540643443,-164.73544592,0.0001789,2]
[365218397,1749540643452,-768.0,0.000179,2]
[365218398,1749540643462,-400.0,0.000179,6]
[365218399,1749540643471,-237.0,0.000179,2]
[365218400,1749540643481,-376.0,0.000179,2]
[365218401,1749540643490,-1397.0,0.00017918,2]
[365218402,1749540643500,-1397.0,0.00017938,2]
[365218403,1749540643510,-1126.71961913,0.00017947,2]
[365218404,1749540643519,-150.0,0.0001797,2]
[365218405,1749540643530,-350.0,0.00017972,2]
[365218406,1749540643539,-500.0,0.00017973,2]
[365218407,1749540643548,-354.46,0.00017973,2]
[365218408,1749540643558,-628.83233137,0.00017977,2]
[365218409,1749540643570,-2026.76100459,0.00017977,2]
[365218410,1749540643579,-657.44909728,0.00017987,2]
[365218426,1749540646329,-282.78234949,0.00017987,2]
[365218427,1749540646357,-626.04557989,0.00017987,2]
[365218429,1749540678417,198.15,0.00013699,2]
[365218430,1749540683091,500.0,0.00014964,2]
[365218431,1749540702429,490.0,0.00016438,2]
[365218432,1749540702663,490.0,0.00016602,2]
[365218433,1749540702902,490.0,0.00016767,2]
[365218434,1749540703148,286.5466526,0.00016931,2]
[365218435,1749540745505,480.0,0.00016438,2]
[365218436,1749540747529,480.0,0.00016438,2]
[365218439,1749540796541,168.0,0.00016572,2]
[365218440,1749540797036,490.0,0.00016438,2]
[365218441,1749540800845,168.0,0.00016864,2]
[365218442,1749540801288,480.0,0.00016438,2]
[365218444,1749540841428,537.79641558,0.00016438,2]
[365218445,1749540845018,480.0,0.00016438,2]
[365218449,1749540856766,580.78,0.00016438,2]
[365218453,1749540901702,480.0,0.00016438,2]
[365218460,1749540951974,490.0,0.00016438,2]
[365218461,1749540952006,470.0,0.00016602,2]
[365218464,1749540970738,540.49,0.00015014,2]
[365218475,1749541084674,480.0,0.00016438,2]
[365218482,1749541155456,2406.89427572,0.000164,2]
[365218484,1749541171021,480.0,0.00016438,2]
[365218485,1749541174773,490.0,0.00016438,2]
[365218486,1749541176683,480.0,0.00016438,2]
[365218490,1749541211935,200.0,0.00016199,2]
[365218491,1749541212232,200.0,0.00016733,2]
[365218493,1749541219008,80.54098868,0.00016438,2]
[365218494,1749541219036,399.45901132,0.00016438,2]
[365218498,1749541238250,150.0,0.00016879,7]
[365218499,1749541252511,480.0,0.00016438,2]
[365218500,1749541273796,298.1103752,0.00016438,2]
[365218502,1749541297519,1000.0,0.00016873,2]
[365218503,1749541410535,152.0,0.00016962,3]
[365218504,1749541430697,486.25221613,0.00016438,2]
[365218505,1749541432336,490.0,0.00016438,2]
[365218506,1749541442287,490.0,0.00016438,2]
[365218507,1749541448119,490.0,0.00016438,2]
[365218508,1749541456378,-200.0,0.00017267,3]
[365218509,1749541456405,-540.49,0.00017278,2]
[365218510,1749541456431,-609.22288307,0.00017283,2]
[365218511,1749541456456,-3072.05526698,0.000173,2]
[365218512,1749541456481,-174.12265402,0.000174,2]
[365218513,1749541456509,-200.0,0.000174,6]
[365218514,1749541456535,-500.0,0.000175,6]
[365218515,1749541456562,-800.0,0.000176,6]
[365218516,1749541456588,-833.29909032,0.00017674,2]
[365218517,1749541456613,-300.0,0.00017698,2]
[365218518,1749541456639,-1200.0,0.00017699,2]
[365218519,1749541456666,-300.0,0.00017699,2]
[365218520,1749541456692,-1000.0,0.000177,6]
[365218521,1749541456718,-796.87,0.000177,2]
[365218522,1749541456745,-170.69,0.000177,2]
[365218523,1749541456770,-150.0,0.000177,2]
[365218524,1749541456793,-796.87,0.000177,2]
[365218525,1749541456819,-708.68,0.000177,2]
[365218526,1749541456843,-170.69,0.000177,2]
[365218527,1749541456867,-796.87,0.000177,2]
[365218528,1749541456891,-454.85,0.000177,2]
[365218529,1749541456915,-150.0,0.000177,2]
[365218530,1749541456939,-796.87,0.000177,2]
[365218531,1749541456964,-170.69,0.000177,2]
[365218532,1749541456988,-150.0,0.000177,2]
[365218533,1749541457020,-9589.73010561,0.000177,2]
[365218534,1749541460719,490.0,0.00016438,2]
[365218535,1749541483669,20079.64779735,0.00017,2]
[365218536,1749541483696,24855.4694,0.00017,2]
[365218537,1749541483724,5064.88280265,0.00017,2]
[365218538,1749541499257,490.0,0.00016438,2]
[365218539,1749541499495,490.0,0.00016602,2]
[365218540,1749541499744,168.94767551,0.00016767,2]
[365218541,1749541517195,480.0,0.00016438,2]
[365218542,1749541522139,207.48,0.00015975,2]
[365218543,1749541525326,17954.15892184,0.00017,2]
[365218544,1749541525355,24855.4694,0.00017,2]
[365218545,1749541525383,7190.37167816,0.00017,2]
[365218546,1749541536363,480.0,0.00016438,2]
[365218547,1749541540286,480.0,0.00016438,2]
[365218548,1749541559967,443.13872409,0.00016438,2]
[365218549,1749541563946,490.0,0.00016438,2]
[365218550,1749541568428,490.0,0.00016438,2]
[365218551,1749541570458,490.0,0.00016438,2]
[365218552,1749541571862,200.0,0.00016802,2]
[365218553,1749541574526,617.1736004,0.00016438,2]
[365218554,1749541576146,13974.78539735,0.00017,2]
[365218555,1749541576174,24855.4694,0.00017,2]
[365218556,1749541576201,11169.74520265,0.00017,2]
[365218557,1749541579111,490.0,0.00016438,2]
[365218558,1749541579367,490.0,0.00016602,2]
[365218559,1749541579875,490.0,0.00016767,2]
[365218560,1749541580111,490.0,0.00016931,2]
[365218561,1749541580790,490.0,0.00016438,2]
[365218562,1749541584883,490.0,0.00016438,2]
[365218563,1749541606853,10745.72419735,0.00017,2]
[365218564,1749541606882,24855.4694,0.00017,2]
[365218565,1749541606910,14398.80640265,0.00017,2]
[365218568,1749541620173,334.0,0.0002465,120]
[365218569,1749541624204,490.0,0.00016438,2]
[365218570,1749541638297,206.43424557,0.00016438,2]
[365218571,1749541640450,490.0,0.00016438,2]
[365218572,1749541640718,175.21,0.00016602,2]
[365218573,1749541669661,490.0,0.00016438,2]
[365218574,1749541670947,186.69,0.00016759,2]
[365218575,1749541680114,1254.74025,0.0002465,120]
[365218576,1749541682071,490.0,0.00016438,2]
[365218577,1749541693963,528.76647508,0.00016438,2]
[365218578,1749541695785,490.0,0.00016438,2]
[365218579,1749541701644,543.67,0.00016438,2]
[365218580,1749541702819,490.0,0.00016438,2]
[365218581,1749541703125,413.5,0.00016602,2]
[365218582,1749541706187,5462.3922767,0.00017,2]
[365218583,1749541706215,24855.4694,0.00017,2]
[365218584,1749541706243,19682.1383233,0.00017,2]
[365218585,1749541708573,529.77,0.00016438,2]
[365218586,1749541721821,490.0,0.00016438,2]
[365218587,1749541722577,490.0,0.00016438,2]
[365218588,1749541722856,490.0,0.00016602,2]
[365218589,1749541723149,490.0,0.00016767,2]
[365218590,1749541723200,490.0,0.00016438,2]
[365218591,1749541723483,177.57,0.00016602,2]
[365218592,1749541723760,559.11999999,0.00016931,2]
[365218593,1749541730796,1456.87107671,0.00017,2]
[365218594,1749541730824,24855.4694,0.00017,2]
[365218595,1749541730851,23687.65952329,0.00017,2]
[365218596,1749541734846,559.61,0.00016438,2]
[365218597,1749541735073,490.0,0.00016438,2]
[365218598,1749541739334,118.19987671,0.00016438,2]
[365218599,1749541739362,371.80012329,0.00016438,2]
[365218600,1749541739605,480.0,0.00016602,2]
[365218601,1749541741548,471.22,0.00016438,2]
[365218602,1749541744051,480.0,0.00016438,2]
[365218603,1749541744097,498.06,0.00016438,2]
[365218604,1749541745568,591.65043067,0.00016438,2]
[365218605,1749541750354,21962.73884604,0.00017,2]
[365218606,1749541750381,24855.4694,0.00017,2]
[365218607,1749541750409,3181.79175396,0.00017,2]
[365218608,1749541761981,601.59,0.00016438,2]
[365218609,1749541764027,490.0,0.00016438,2]
[365218610,1749541765183,506.01,0.00016438,2]
[365218612,1749541771284,490.0,0.00016438,2]
[365218613,1749541771524,490.0,0.00016602,2]
[365218614,1749541771779,180.87,0.00016767,2]
[365218615,1749541773162,490.0,0.00016438,2]
[365218616,1749541773198,637.05,0.00016438,2]
[365218617,1749541775359,490.0,0.00016438,2]
[365218618,1749541788713,490.0,0.00016438,2]
[365218619,1749541788975,490.0,0.00016602,2]
[365218620,1749541789226,265.46,0.00016767,2]
[365218621,1749541792686,490.0,0.00016438,2]
[365218622,1749541792954,490.0,0.00016602,2]
[365218623,1749541793207,490.0,0.00016767,2]
[365218624,1749541793463,490.0,0.00016931,2]
[365218625,1749541801025,490.0,0.00016438,2]
[365218626,1749541801321,490.0,0.00016602,2]
[365218627,1749541801559,490.0,0.00016767,2]
[365218628,1749541801825,490.0,0.00016931,2]
[365218629,1749541808625,12132.69764604,0.00017,2]
[365218630,1749541808656,24855.4694,0.00017,2]
[365218631,1749541808688,13011.83295396,0.00017,2]
[365218632,1749541809372,480.0,0.00016438,2]
[365218633,1749541813739,480.0,0.00016438,2]
[365218634,1749541827971,490.0,0.00016438,2]
[365218635,1749541828247,490.0,0.00016602,2]
[365218636,1749541828506,490.0,0.00016767,2]
[365218637,1749541828847,492.49,0.00016931,2]
[365218638,1749541829625,-2949.53181,0.00019,30]
[365218639,1749541829713,-2249.56,0.00019205,30]
[365218640,1749541829795,-2122.74,0.000199,31]
[365218641,1749541829865,-2122.74,0.000199,31]
[365218642,1749541829930,-2122.74,0.000199,31]
[365218643,1749541829996,-2122.74,0.000199,31]
[365218644,1749541830057,-2122.74,0.000199,31]
[365218645,1749541830142,-2122.74,0.000199,31]
[365218646,1749541830221,-2122.74,0.000199,31]
[365218647,1749541830286,-2122.74,0.000199,31]
[365218648,1749541830364,-2122.74,0.000199,31]
[365218649,1749541830431,-2122.74,0.000199,31]
[365218650,1749541830496,-2122.74,0.000199,31]
[365218651,1749541830560,-2122.74,0.000199,31]
[365218652,1749541830626,-2122.74,0.000199,31]
[365218653,1749541830689,-2122.74,0.000199,31]
[365218654,1749541831241,-248.81699406,0.0002,30]
[365218655,1749541831307,-640.81154111,0.0002,90]
[365218656,1749541831352,8921.14644604,0.00017,2]
[365218657,1749541831379,24855.4694,0.00017,2]
[365218658,1749541831406,16223.38415396,0.00017,2]
[365218663,1749541832374,-490.0,0.00017095,2]
[365218664,1749541832385,-414.59,0.00017095,2]
[365218665,1749541832395,-250.0,0.00017173,2]
[365218666,1749541832405,-167.69,0.00017252,2]
[365218667,1749541832415,-160.04,0.0001726,2]
[365218668,1749541832424,-200.0,0.00017348,2]
[365218669,1749541832434,-200.0,0.000174,6]
[365218670,1749541832444,-500.0,0.000175,6]
[365218671,1749541832453,-700.0,0.000176,6]
[365218672,1749541832463,-354.46,0.00017607,2]
[365218673,1749541832473,-833.29909032,0.00017675,2]
[365218674,1749541832483,-168.0,0.00017677,2]
[365218675,1749541832492,-300.0,0.00017698,2]
[365218676,1749541832502,-1200.0,0.00017698,2]
[365218677,1749541832512,-300.0,0.00017699,2]
[365218678,1749541832521,-550.0,0.00017699,2]
[365218679,1749541832531,-150.0,0.000177,2]
[365218680,1749541832540,-1000.0,0.000177,6]
[365218681,1749541832550,-150.24989439,0.000177,2]
[365218682,1749541832559,-2171.92785109,0.000177,2]
[365218683,1749541832571,-500.0,0.00017704,2]
[365218684,1749541832580,-151.0,0.00017717,2]
[365218685,1749541832590,-151.0,0.00017717,2]
[365218686,1749541832599,-2085.55052351,0.00017717,2]
[365218687,1749541832611,-151.0,0.00017717,2]
[365218688,1749541832620,-151.0,0.00017717,2]
[365218689,1749541832630,-151.0,0.00017717,2]
[365218690,1749541832640,-151.0,0.00017717,2]
[365218691,1749541832651,-211.63346881,0.00017717,2]
[365218692,1749541832661,-207.4,0.00017717,2]
[365218693,1749541832670,-2171.92785104,0.0001772,2]
[365218694,1749541832680,-767.97094572,0.00017721,2]
[365218695,1749541832690,-500.38368259,0.00017727,2]
[365218696,1749541832699,-500.0,0.00017727,2]
[365218697,1749541832708,-159.66544717,0.00017727,2]
[365218698,1749541832718,-500.0,0.00017727,2]
[365218699,1749541832727,-500.0,0.00017727,2]
[365218700,1749541832736,-500.0,0.00017727,2]
[365218701,1749541832746,-522.15621318,0.00017727,2]
[365218702,1749541832759,-500.0,0.00017727,2]
[365218703,1749541832768,-300.0,0.00017727,2]
[365218704,1749541832778,-500.0,0.00017727,2]
[365218705,1749541832787,-500.63400597,0.00017727,2]
[365218706,1749541832797,-500.0,0.00017727,2]
[365218707,1749541832806,-500.0,0.00017727,2]
[365218708,1749541832816,-500.0,0.00017727,2]
[365218709,1749541832825,-500.0,0.00017727,2]
[365218710,1749541832836,-500.0,0.00017727,2]
[365218712,1749541832845,-500.0,0.00017727,2]
[365218714,1749541832854,-500.0,0.00017727,2]
[365218716,1749541832863,-500.0,0.00017727,2]
[365218718,1749541832873,-350.0,0.00017727,2]
[365218720,1749541832883,-427.02380237,0.00017727,2]
[365218722,1749541832893,-999.99,0.00017728,2]
[365218724,1749541832903,-2200.07,0.00017728,2]
[365218726,1749541832912,-38479.33696096,0.00017728,2]
[365218729,1749541832925,-370.04022624,0.00017728,2]
[365218731,1749541832937,-2125.93913558,0.00017728,2]
[365218733,1749541832948,-1778.60084195,0.00017728,2]
[365218741,1749541833015,-5400.0,0.00017728,2]
[365218743,1749541833026,-1459.70783706,0.00017728,2]
[365218747,1749541833050,-1615.44846228,0.00017728,2]
[365218749,1749541833062,-533.64022597,0.00017728,2]
[365218753,1749541833092,-28205.11630996,0.00017728,2]
[365218755,1749541833102,-150.99,0.00017728,2]
[365218757,1749541833111,-2865.35,0.00017728,2]
[365218759,1749541833121,-299.99,0.00017728,4]
[365218761,1749541833130,-805.49,0.00017728,2]
[365218763,1749541833140,-2171.92785104,0.0001774,2]
[365218765,1749541833150,-2171.92785104,0.0001776,2]
[365218767,1749541833160,-150.0,0.00017767,2]
[365218769,1749541833169,-150.0,0.00017779,2]
[365218771,1749541833179,-2171.92785104,0.0001778,2]
[365218773,1749541833188,-300.0,0.00017799,2]
[365218775,1749541833198,-532.36,0.00017799,2]
[365218777,1749541833207,-500.0,0.00017799,2]
[365218779,1749541833216,-500.0,0.00017799,2]
[365218781,1749541833226,-500.0,0.00017799,2]
[365218783,1749541833235,-500.0,0.00017799,2]
[365218785,1749541833245,-500.0,0.00017799,2]
[365218787,1749541833254,-500.0,0.00017799,2]
[365218788,1749541833264,-500.0,0.00017799,2]
[365218790,1749541833274,-500.0,0.00017799,2]
[365218791,1749541833283,-500.0,0.00017799,2]
[365218793,1749541833293,-500.0,0.00017799,2]
[365218795,1749541833303,-500.0,0.00017799,2]
[365218797,1749541833313,-500.0,0.00017799,2]
[365218799,1749541833323,-500.0,0.00017799,2]
[365218801,1749541833333,-500.0,0.00017799,2]
[365218804,1749541833345,-500.0,0.00017799,2]
[365218805,1749541833354,-500.0,0.00017799,2]
[365218807,1749541833365,-500.0,0.00017799,2]
[365218810,1749541833381,-500.0,0.00017799,2]
[365218812,1749541833392,-500.0,0.00017799,2]
[365218814,1749541833402,-500.0,0.00017799,2]
[365218816,1749541833412,-497.162,0.00017799,2]
[365218818,1749541833422,-194.45727236,0.00017799,2]
[365218820,1749541833432,-192.93182811,0.00017799,2]
[365218822,1749541833442,-427.80493933,0.00017799,2]
[365218824,1749541833452,-295.73506012,0.00017799,2]
[365218826,1749541833463,-833.29909032,0.000178,3]
[365218828,1749541833472,-79430.0,0.000178,2]
[365218830,1749541833483,-1200.0,0.000178,6]
[365218832,1749541833493,-500.0,0.00017808,2]
[365218834,1749541833503,-500.0,0.00017808,2]
[365218836,1749541833513,-500.0,0.00017808,2]
[365218838,1749541833523,-500.0,0.00017808,2]
[365218840,1749541833534,-152.0,0.00017817,4]
[365218842,1749541833544,-5000.0,0.00017879,2]
[365218844,1749541833554,-221.9553051,0.0001788,2]
[365218846,1749541833564,-163.53690916,0.0001788,2]
[365218848,1749541833575,-13958.08703551,0.0001788,2]
[365218850,1749541833585,-784.20931412,0.0001788,2]
[365219296,1749541839068,-1665.7265508,0.000178,2]
[365219297,1749541839079,-506.20130024,0.000178,2]
[365219298,1749541839089,-5.82343786,0.00017808,2]
[365219299,1749541839123,-494.17656214,0.00017808,2]
[365219300,1749541839132,-51.72308544,0.00017808,2]
[365219301,1749541839162,1919.3763,0.00016995,2]
[365219305,1749541840713,-446.95757411,0.00017808,2]
[365219306,1749541840992,-1.31934045,0.00017808,2]
[365219307,1749541841002,-500.0,0.00017808,2]
[365219308,1749541841012,-500.0,0.00017825,2]
[365219309,1749541841022,-233.79998107,0.0001788,2]
[365219310,1749541841038,-885.26919249,0.0001788,2]
[365219311,1749541841048,-641.63010071,0.0001788,2]
[365219312,1749541841060,-3002.82399475,0.0001788,2]
[365219313,1749541841069,-196.73910747,0.0001788,3]
[365219314,1749541841079,-170.03189212,0.0001789,2]
[365219315,1749541841089,-297.89167672,0.0001789,2]
[365219316,1749541841099,-200.0,0.00017895,3]
[365219317,1749541841109,-150.0,0.00017896,2]
[365219318,1749541841119,-168.0,0.00017896,2]
[365219319,1749541841129,-150.0,0.00017897,2]
[365219320,1749541841139,-353.0,0.000179,2]
[365219321,1749541841150,-1163.59,0.000179,2]
[365219322,1749541841159,-200.0,0.000179,6]
[365219323,1749541841169,-1454.75559149,0.000179,2]
[365219324,1749541841178,-79.79039607,0.000179,2]
[365219330,1749541843335,-2171.92785104,0.0001782,2]
[365219331,1749541843345,-1374.96519538,0.000179,2]
[365219332,1749541843355,-1424.02228916,0.000179,2]
[365219333,1749541843377,-30.73330229,0.000179,2]
[365219334,1749541843387,-1454.75559145,0.000179,2]
[365219335,1749541843397,-1454.75559145,0.000179,2]
[365219336,1749541843407,-1454.75559145,0.000179,2]
[365219337,1749541843417,-1454.75559145,0.000179,2]
[365219338,1749541843427,-1454.75559145,0.000179,2]
[365219339,1749541843437,-1454.75559145,0.000179,2]
[365219340,1749541843447,-1454.75559145,0.000179,2]
[365219341,1749541843457,-1454.75559145,0.000179,2]
[365219342,1749541843467,-1454.75559145,0.000179,2]
[365219343,1749541843476,-1454.75559145,0.000179,2]
[365219344,1749541843485,-1454.75559145,0.000179,2]
[365219345,1749541843494,-1454.75559145,0.000179,2]
[365219346,1749541843503,-884.35756381,0.000179,2]
[365219347,1749541843534,-570.39802764,0.000179,2]
[365219348,1749541843544,-62.80197236,0.000179,2]
[365219350,1749541843699,-1391.95361909,0.000179,2]
[365219352,1749541843709,-1454.75559145,0.000179,2]
[365219353,1749541843719,-985.11138946,0.000179,2]
[365219401,1749541849887,-469.64420199,0.000179,2]
[365219402,1749541849898,-408.65579801,0.000179,2]
[365219403,1749541849910,-703.96765378,0.000179,2]
[365219404,1749541851815,480.0,0.00016438,2]
[365219405,1749541856850,6232.70894604,0.00017,2]
[365219406,1749541856877,24855.4694,0.00017,2]
[365219407,1749541856904,18911.82165396,0.00017,2]
[365219408,1749541863254,490.0,0.00016438,2]
[365219409,1749541863858,490.0,0.00016602,2]
[365219410,1749541864215,569.12,0.00016767,2]
[365219411,1749541879699,480.0,0.00016438,2]
[365219412,1749541885872,490.0,0.00016438,2]
[365219413,1749541886106,490.0,0.00016602,2]
[365219414,1749541887526,490.0,0.00016767,2]
[365219415,1749541887784,490.0,0.00016931,2]
[365219416,1749541892065,480.0,0.00016438,2]
[365219417,1749541896213,480.0,0.00016438,2]
[365219418,1749541901876,480.0,0.00016438,2]
[365219419,1749541902546,514.52774604,0.00016438,2]
[365219420,1749541902572,45.02626563,0.00016438,2]
[365219421,1749541927988,490.0,0.00016438,2]
[365219422,1749541928330,480.0,0.00016602,2]
[365219423,1749541930502,480.0,0.00016438,2]
[365219424,1749541931352,480.0,0.00016438,2]
[365219425,1749541950882,480.0,0.00016438,2]
[365219426,1749541951719,477.09914939,0.00016438,2]
[365219427,1749541954509,480.0,0.00016438,2]
[365219428,1749541956145,490.0,0.00016438,2]
[365219429,1749541956384,576.78,0.00016602,2]
[365219430,1749541956606,490.0,0.00016438,2]
[365219431,1749541956879,490.0,0.00016602,2]
[365219432,1749541957135,490.0,0.00016767,2]
[365219433,1749541957387,390.52821479,0.00016931,2]
[365219434,1749541967920,480.0,0.00016438,2]
[365219435,1749541970476,480.0,0.00016438,2]
[365219436,1749541973606,490.0,0.00016438,2]
[365219437,1749541973846,371.8,0.00016602,2]
[365219438,1749541975890,1000.0,0.00016438,2]
[365219439,1749541976452,532.73,0.00015017,2]
[365219440,1749541979876,480.0,0.00016438,2]
[365219441,1749541980510,168.0,0.00016387,2]
[365219442,1749541981849,480.0,0.00016438,2]
[365219443,1749541983455,480.0,0.00016438,2]
[365219444,1749541984133,150.0,0.0002,30]
[365219445,1749541991325,618.45,0.00016438,2]
[365219446,1749541993525,480.0,0.00016438,2]
[365219447,1749541994221,549.42,0.00016438,2]
[365219448,1749541994976,262.78226939,0.00016438,2]
[365219449,1749541995342,480.0,0.00016438,2]
[365219450,1749542005555,490.0,0.00016438,2]
[365219451,1749542005843,605.66,0.00016602,2]
[365219452,1749542010997,166.43940854,0.00016438,2]
[365219453,1749542012828,480.0,0.00016438,2]
[365219454,1749542014639,480.0,0.00016438,2]
[365219455,1749542018147,612.02,0.00016438,2]
[365219456,1749542018669,490.0,0.00016438,2]
[365219457,1749542018917,602.18,0.00016602,2]
[365219458,1749542021514,490.0,0.00016438,2]
[365219459,1749542021762,271.82,0.00016602,2]
[365219460,1749542023737,480.0,0.00016438,2]
[365219461,1749542041209,480.0,0.00016438,2]
[365219462,1749542058065,511.43,0.00016438,2]
[365219463,1749542068749,480.0,0.00016438,2]
[365219464,1749542093116,480.0,0.00016438,2]
[365219465,1749542113054,490.0,0.00016438,2]
[365219466,1749542113312,490.0,0.00016602,2]
[365219467,1749542113584,490.0,0.00016767,2]
[365219468,1749542113835,490.0,0.00016931,2]
[365219469,1749542137713,490.0,0.00016438,2]
[365219470,1749542151224,225.58,0.00016438,2]
[365219471,1749542155448,480.0,0.00016438,2]
[365219472,1749542197460,150.0,0.00016912,7]
[365219473,1749542210999,284.74620952,0.00016438,2]
[365219474,1749542224305,554.6,0.00016438,2]
[365219475,1749542229106,48.37788274,0.00016438,2]
[365219476,1749542229131,432.3098194,0.00016438,2]
[365219477,1749542239317,167.02,0.00016908,2]
[365219478,1749542244858,480.0,0.00016438,2]
[365219479,1749542253124,475.93,0.00016438,2]
[365219480,1749542255307,1000.0,0.00016903,2]
[365219481,1749542258454,522.54,0.00016438,2]
[365219482,1749542274049,199.8,0.00013699,2]
[365219483,1749542278723,480.0,0.00016438,2]
[365219485,1749542291898,200.0,0.00016442,2]
[365219486,1749542294280,480.0,0.00016438,2]
[365219487,1749542304116,480.0,0.00016438,2]
[365219488,1749542316963,1968.36,0.00019205,30]
[365219489,1749542370101,490.0,0.00016438,2]
[365219490,1749542370307,490.0,0.00016602,2]
[365219491,1749542370565,490.0,0.00016767,2]
[365219492,1749542370816,490.0,0.00016931,2]
[365219493,1749542396311,150.0,0.000246,120]
[365219494,1749542432369,1804.49,0.000199,31]
[365219495,1749542432437,1804.49,0.000199,31]
[365219496,1749542432851,1804.49,0.000199,31]
[365219497,1749542432911,1804.49,0.000199,31]